bitfinex/quotes_SOLUSD_20241024
["timestamp","ask_amount","ask_price","bid_price","bid_amount"]
[1729802807699,19.78956024,177.18,177.14,23.776884]
[1729802809381,25.43356024,177.18,177.14,23.776884]
[1729802809583,19.78956024,177.16,177.14,23.776884]
[1729802809786,19.78956024,177.15,177.14,23.776884]
[1729802811909,19.78956024,177.16,177.14,23.776884]
[1729802813100,19.78956024,177.16,177.13,23.776884]
[1729802814590,15.95276437,177.2,177.13,43.56644424]
[1729802814791,19.78956024,177.17,177.13,23.776884]
[1729802815615,19.78956024,177.15,177.13,23.776884]
[1729802816494,19.78956024,177.15,177.1,19.78956024]
[1729802816694,19.78956024,177.14,177.11,23.776884]
[1729802817010,19.78956024,177.13,177.04,20.24785503]
[1729802817192,19.78956024,177.1,177.04,20.24785503]
[1729802817398,19.78956024,177.09,177.04,4.23475503]
[1729802817612,19.78956024,177.09,177.04,24.02431527]
[1729802818315,15.2317,177.14,177.04,24.02431527]
[1729802818316,19.78956024,177.08,177.04,4.23475503]
[1729802818687,19.78956024,177.06,177.04,4.23475503]
[1729802818903,19.78956024,177.06,177.01,19.78956024]
[1729802819095,20.0,177.09,177.03,19.78956024]
[1729802819287,19.78956024,177.08,177.03,19.78956024]
[1729802819912,19.78956024,177.08,177.04,23.776884]
[1729802820801,6.47292122,177.11,177.06,19.78956024]
[1729802821009,26.26248146,177.11,177.06,19.78956024]
[1729802821595,6.47292122,177.11,177.06,19.78956024]
[1729802821795,26.26248146,177.11,177.06,19.78956024]
[1729802823834,6.47292122,177.11,177.06,19.78956024]
[1729802824110,26.26248146,177.11,177.06,19.78956024]
[1729802828817,11.8365,177.17,177.1,19.78956024]
[1729802829012,31.62606024,177.17,177.12,19.78956024]
[1729802829919,19.78956024,177.16,177.11,19.78956024]
[1729802830621,19.78956024,177.15,177.11,19.78956024]
[1729802830810,19.78956024,177.16,177.11,19.78956024]
[1729802831197,25.43416024,177.16,177.11,19.78956024]
[1729802834909,25.43416024,177.16,177.07,0.12549]
[1729802835112,25.43416024,177.16,177.11,19.78956024]
[1729802835314,19.78956024,177.14,177.06,23.776884]
[1729802835617,19.78956024,177.13,177.08,19.78956024]
[1729802835822,19.78956024,177.13,177.09,23.776884]
[1729802836210,19.78956024,177.13,177.08,19.78956024]
[1729802837427,6.1922,177.17,177.09,19.78956024]
[1729802837725,20.0,177.16,177.12,19.78956024]
[1729802838901,25.6447,177.16,177.12,19.78956024]
[1729802842925,5.6447,177.16,177.12,19.78956024]
[1729802843129,21.8524,177.18,177.14,19.78956024]
[1729802843341,26.19716024,177.21,177.16,19.78956024]
[1729802843508,31.84016024,177.21,177.16,19.78956024]
[1729802844125,32.66765466,177.21,177.16,19.78956024]
[1729802844331,20.0,177.2,177.16,19.78956024]
[1729802844825,20.0,177.18,177.16,19.78956024]
[1729802845520,27.02465466,177.21,177.16,19.78956024]
[1729802845830,20.0,177.19,177.16,19.78956024]
[1729802846222,20.0,177.19,177.15,19.78956024]
[1729802847729,26.47139442,177.19,177.15,19.78956024]
[1729802849817,19.78956024,177.17,177.13,23.776884]
[1729802850216,19.78956024,177.17,177.12,19.78956024]
[1729802850936,25.43406024,177.17,177.12,19.78956024]
[1729802852032,19.78956024,177.16,177.11,19.78956024]
[1729802852233,19.78956024,177.16,177.12,23.776884]
[1729802852827,19.78956024,177.15,177.1,19.78956024]
[1729802853026,19.78956024,177.15,177.11,23.776884]
[1729802853621,19.78956024,177.14,177.11,23.776884]
[1729802853936,19.78956024,177.15,177.1,43.56644424]
[1729802854115,25.43466024,177.15,177.1,43.56644424]
[1729802854316,19.78956024,177.13,177.08,19.78956024]
[1729802854520,19.78956024,177.13,177.09,23.776884]
[1729802854921,19.78956024,177.14,177.09,43.56644424]
[1729802855131,19.78956024,177.13,177.09,23.776884]
[1729802855337,19.78956024,177.12,177.08,23.776884]
[1729802855533,19.78956024,177.13,177.08,43.56644424]
[1729802856341,25.43526024,177.13,177.08,43.56644424]
[1729802856538,0.83168975,177.14,177.12,19.78956024]
[1729802857738,0.83168975,177.14,177.11,19.78956024]
[1729802858127,5.6446,177.16,177.12,19.78956024]
[1729802860637,15.53938012,177.16,177.11,9.89478012]
[1729802860841,19.78956024,177.12,177.04,15.5876]
[1729802861138,19.78956024,177.11,177.06,19.78956024]
[1729802861446,19.78956024,177.14,177.08,19.78956024]
[1729802861848,5.6455,177.13,177.09,19.78956024]
[1729802864247,25.43506024,177.13,177.08,19.78956024]
[1729802865651,5.6455,177.13,177.09,23.776884]
[1729802865850,5.6455,177.13,177.09,43.56644424]
[1729802866856,25.43486024,177.14,177.09,43.56644424]
[1729802870053,6.83249442,177.19,177.13,9.89478012]
[1729802870343,6.83249442,177.19,177.09,23.776884]
[1729802870344,5.6439,177.18,177.15,19.78956024]
[1729802870543,0.82749442,177.19,177.16,19.78956024]
[1729802872255,0.82749442,177.19,177.15,19.78956024]
[1729802873647,26.26065466,177.19,177.15,23.776884]
[1729802877531,6.47109442,177.19,177.15,43.56644424]
[1729802878332,0.82749442,177.19,177.16,19.78956024]
[1729802880635,0.82749442,177.19,177.17,19.78956024]
[1729802882936,0.82749442,177.19,177.16,19.78956024]
[1729802883136,0.82749442,177.19,177.18,19.78956024]
[1729802884451,0.82749442,177.19,177.18,43.56644424]
[1729802884656,25.43096024,177.26,177.19,23.776884]
[1729802884833,25.43096024,177.26,177.21,19.78956024]
[1729802885035,5.6414,177.26,177.21,19.78956024]
[1729802885265,25.43096024,177.26,177.21,19.78956024]
[1729802886468,5.6414,177.26,177.21,19.78956024]
[1729802886651,25.43096024,177.26,177.21,19.78956024]
[1729802887940,25.43136024,177.25,177.21,23.776884]
[1729802890038,0.3966524,177.28,177.15,16.0481]
[1729802890039,25.43156024,177.24,177.15,16.0481]
[1729802890253,19.78956024,177.21,177.15,16.0481]
[1729802890467,6.46270972,177.24,177.14,19.78956024]
[1729802890468,19.78956024,177.19,177.14,19.78956024]
[1729802891761,19.78956024,177.2,177.15,43.56644424]
[1729802892561,19.78956024,177.2,177.17,23.776884]
[1729802893050,5.6425,177.23,177.17,23.776884]
[1729802893244,19.78956024,177.21,177.17,23.776884]
[1729802894846,19.78956024,177.2,177.16,23.776884]
[1729802898446,25.43256024,177.21,177.16,43.56644424]
[1729802899448,25.43256024,177.21,177.16,23.776884]
[1729802899653,19.78956024,177.2,177.16,23.776884]
[1729802905375,5.6423,177.23,177.16,43.56644424]
[1729802905679,19.78956024,177.21,177.16,43.56644424]
[1729802906565,25.43256024,177.21,177.16,43.56644424]
[1729802907078,25.43256024,177.21,177.16,23.776884]
[1729802912182,19.78956024,177.2,177.16,23.776884]
[1729802912479,25.43256024,177.21,177.16,23.776884]
[1729802913854,19.78956024,177.21,177.16,23.776884]
[1729802914057,26.25246996,177.24,177.19,43.56644424]
[1729802914255,26.25246996,177.24,177.12,79.25824096]
[1729802914256,0.82070972,177.24,177.21,43.56644424]
[1729802914454,0.82070972,177.24,177.23,43.56644424]
[1729802914879,6.0374524,177.28,177.24,23.776884]
[1729802915061,6.0374524,177.28,177.24,43.56644424]
[1729802917083,6.0374524,177.28,177.24,23.776884]
[1729802917379,19.78956024,177.27,177.23,23.776884]
[1729802919674,19.28956024,177.27,177.23,23.776884]
[1729802920156,25.82701264,177.28,177.23,43.56644424]
[1729802921575,19.78956024,177.27,177.23,23.776884]
[1729802923996,6.0374524,177.28,177.23,43.56644424]
[1729802924169,25.82701264,177.28,177.23,43.56644424]
[1729802926672,25.43066024,177.27,177.23,23.776884]
[1729802926985,19.78956024,177.26,177.22,23.776884]
[1729802928374,5.6411,177.27,177.22,43.56644424]
[1729802928596,19.78956024,177.26,177.22,43.56644424]
[1729802932492,19.78956024,177.23,177.22,23.776884]
[1729802932696,5.6415,177.26,177.17,16.5792]
[1729802932697,0.7850163,177.24,177.17,36.36876024]
[1729802932886,19.78956024,177.23,177.18,19.78956024]
[1729802933478,19.78956024,177.23,177.19,19.78956024]
[1729802934017,19.78956024,177.23,177.2,23.776884]
[1729802934789,5.6418,177.25,177.2,23.776884]
[1729802934987,19.78956024,177.23,177.2,23.776884]
[1729802935474,5.6418,177.25,177.2,23.776884]
[1729802935678,19.78956024,177.24,177.2,23.776884]
[1729802935896,19.78956024,177.23,177.2,23.776884]
[1729802936397,5.6418,177.25,177.2,23.776884]
[1729802936398,19.78956024,177.25,177.2,43.56644424]
[1729802936609,25.43106024,177.26,177.22,23.776884]
[1729802938006,26.21603223,177.26,177.22,23.776884]
[1729802938505,6.42647199,177.26,177.22,23.776884]
[1729802938687,26.21603223,177.26,177.22,23.776884]
[1729802938885,0.78497199,177.26,177.22,43.56644424]
[1729802939084,0.78497199,177.26,177.23,19.78956024]
[1729802940202,0.78497199,177.26,177.22,43.56644424]
[1729802940404,20.57453223,177.26,177.22,23.776884]
[1729802941683,26.21593223,177.26,177.22,23.776884]
[1729802942097,19.78956024,177.25,177.22,23.776884]
[1729802942316,5.6414,177.26,177.21,43.56644424]
[1729802942485,25.43096024,177.26,177.21,43.56644424]
[1729802944197,0.3966524,177.28,177.21,43.56644424]
[1729802944391,19.78956024,177.25,177.21,23.776884]
[1729802946184,19.78956024,177.24,177.21,23.776884]
[1729802946403,19.78956024,177.22,177.18,23.902374]
[1729802946592,19.78956024,177.22,177.17,36.36876024]
[1729802946984,19.78956024,177.21,177.15,6.5679]
[1729802947188,19.78956024,177.2,177.15,19.78956024]
[1729802947597,19.78956024,177.19,177.13,16.5336]
[1729802947795,19.78956024,177.19,177.14,19.78956024]
[1729802948309,19.78956024,177.18,177.13,36.32316024]
[1729802949507,19.78956024,177.19,177.14,43.56644424]
[1729802950210,19.78956024,177.18,177.14,23.776884]
[1729802951889,5.6437,177.19,177.13,23.776884]
[1729802951890,19.78956024,177.17,177.13,23.776884]
[1729802952286,19.78956024,177.16,177.12,23.776884]
[1729802952492,19.78956024,177.15,177.11,23.776884]
[1729802952900,19.78956024,177.15,177.1,19.78956024]
[1729802954219,19.78956024,177.15,177.11,23.776884]
[1729802954504,19.78956024,177.14,177.1,23.902374]
[1729802954705,19.78956024,177.12,177.09,23.776884]
[1729802954909,19.78956024,177.12,177.08,23.776884]
[1729802955702,19.78956024,177.11,177.06,19.78956024]
[1729802956892,19.78956024,177.12,177.07,43.56644424]
[1729802957090,25.43486024,177.14,177.08,19.78956024]
[1729802957295,26.2444899,177.16,177.11,43.56644424]
[1729802957508,26.2444899,177.16,177.11,19.78956024]
[1729802957818,20.5996899,177.16,177.12,23.776884]
[1729802959307,19.78956024,177.15,177.12,23.776884]
[1729802959514,19.78956024,177.15,177.11,23.776884]
[1729802963993,20.5996899,177.16,177.11,23.776884]
[1729802964207,20.5996899,177.16,177.11,43.56644424]
[1729802965420,19.78956024,177.15,177.11,23.776884]
[1729802968327,20.5996899,177.16,177.11,43.56644424]
[1729802970224,9.89478012,177.15,177.11,33.67166412]
[1729802970517,19.78956024,177.15,177.11,23.776884]
[1729802975129,20.5996899,177.16,177.11,43.56644424]
[1729802978111,20.5996899,177.16,177.11,23.776884]
[1729802978316,23.0922,177.19,177.14,23.776884]
[1729802978507,19.78956024,177.18,177.14,23.776884]
[1729802978712,23.0922,177.19,177.14,43.56644424]
[1729802978913,42.88176024,177.19,177.14,33.67166412]
[1729802979132,19.78956024,177.18,177.14,23.776884]
[1729802982523,25.43346024,177.18,177.14,23.776884]
[1729802986136,19.78956024,177.17,177.14,23.776884]
[1729802986540,5.6439,177.18,177.13,23.776884]
[1729802986730,19.78956024,177.17,177.13,23.776884]
[1729802988136,19.78956024,177.14,177.1,23.776884]
[1729802988343,19.78956024,177.15,177.1,23.776884]
[1729802988516,19.78956024,177.12,177.07,19.78956024]
[1729802988721,19.78956024,177.12,177.06,19.78956024]
[1729802989518,19.78956024,177.11,177.06,19.78956024]
[1729802989931,19.78956024,177.11,177.07,23.776884]
[1729802992135,19.78956024,177.12,177.07,23.776884]
[1729802992541,19.78956024,177.11,177.07,23.776884]
[1729802993132,0.22549,177.16,177.07,23.776884]
[1729802993320,19.78956024,177.11,177.07,23.776884]
[1729802994333,26.28002529,177.11,177.07,23.776884]
[1729802994533,26.28002529,177.11,177.06,23.776884]
[1729802994534,19.78956024,177.1,177.06,23.776884]
[1729802995842,26.28002529,177.11,177.06,23.776884]
[1729802996028,25.43586024,177.11,177.06,23.776884]
[1729802997537,19.78956024,177.1,177.06,23.776884]
[1729803001045,19.78956024,177.09,177.05,23.776884]
[1729803001532,19.78956024,177.1,177.05,43.56644424]
[1729803002438,20.0,177.12,177.08,19.78956024]
[1729803003460,25.6459,177.12,177.08,19.78956024]
[1729803004258,45.43546024,177.12,177.07,19.78956024]
[1729803005959,16.55206856,177.13,177.08,19.78956024]
[1729803006143,0.84406856,177.13,177.1,19.78956024]
[1729803006338,0.84406856,177.13,177.12,43.56644424]
[1729803006539,0.84406856,177.13,177.12,19.78956024]
[1729803006749,0.84406856,177.13,177.06,6.4227]
[1729803006938,0.84406856,177.13,177.07,23.902374]
[1729803007256,0.84406856,177.13,177.1,23.776884]
[1729803007835,20.6336288,177.13,177.1,23.776884]
[1729803008053,19.78956024,177.11,177.05,15.5443]
[1729803008255,19.78956024,177.09,177.04,19.78956024]
[1729803008452,19.78956024,177.09,177.02,6.4859]
[1729803008645,19.78956024,177.08,177.03,9.89478012]
[1729803008850,19.78956024,177.08,177.03,19.78956024]
[1729803009862,19.78956024,177.08,177.04,23.776884]
[1729803010543,19.78956024,177.06,177.01,19.78956024]
[1729803010841,9.89478012,177.05,177.0,19.78956024]
[1729803011044,19.78956024,177.05,177.0,19.78956024]
[1729803011665,19.78956024,177.05,177.01,23.776884]
[1729803013551,6.7244,177.1,177.01,23.776884]
[1729803013552,19.78956024,177.03,177.01,23.776884]
[1729803014742,19.78956024,177.03,176.98,19.78956024]
[1729803014943,5.6486,177.04,176.97,19.78956024]
[1729803015144,19.78956024,177.03,176.98,19.78956024]
[1729803016057,19.78956024,177.02,176.99,23.776884]
[1729803016260,19.78956024,177.02,176.98,23.776884]
[1729803017452,19.78956024,177.02,176.97,23.776884]
[1729803017845,19.78956024,177.02,176.97,43.56644424]
[1729803021371,19.78956024,177.02,176.97,23.776884]
[1729803021664,19.78956024,176.99,176.94,19.78956024]
[1729803021862,6.2589,177.03,176.97,19.78956024]
[1729803022065,26.04846024,177.03,176.97,9.89478012]
[1729803022368,26.04846024,177.03,176.98,19.78956024]
[1729803022574,0.82475034,177.05,177.01,19.78956024]
[1729803023071,0.82475034,177.05,177.01,23.776884]
[1729803023563,0.82475034,177.05,177.01,43.56644424]
[1729803023950,0.82475034,177.05,177.01,23.776884]
[1729803024556,20.61431058,177.05,177.01,23.776884]
[1729803024863,20.61431058,177.05,177.0,43.56644424]
[1729803026150,0.82475034,177.05,177.01,19.78956024]
[1729803026361,0.82475034,177.05,177.02,19.78956024]
[1729803026660,0.82475034,177.05,177.01,19.78956024]
[1729803028561,0.82475034,177.05,177.0,23.776884]
[1729803028768,0.82475034,177.05,177.0,43.56644424]
[1729803030073,0.82475034,177.05,177.01,19.78956024]
[1729803031358,0.82475034,177.05,177.0,43.56644424]
[1729803032147,0.82475034,177.05,177.0,38.56644424]
[1729803034058,19.78956024,177.04,176.99,19.78956024]
[1729803034258,19.78956024,177.03,176.97,19.78956024]
[1729803034572,19.78956024,177.02,176.97,19.78956024]
[1729803037060,19.78956024,177.03,176.97,19.78956024]
[1729803037672,19.78956024,177.03,176.98,19.78956024]
[1729803038469,19.78956024,177.02,176.97,19.78956024]
[1729803038775,25.43826024,177.03,176.98,19.78956024]
[1729803038966,19.78956024,177.02,176.96,19.78956024]
[1729803039269,19.78956024,177.01,176.96,19.78956024]
[1729803039470,19.78956024,177.0,176.95,19.78956024]
[1729803041454,19.78956024,176.99,176.94,19.78956024]
[1729803041653,19.78956024,176.99,176.93,19.78956024]
[1729803042062,19.78956024,176.98,176.93,19.78956024]
[1729803042461,19.78956024,176.99,176.93,19.78956024]
[1729803042662,19.78956024,176.99,176.94,19.78956024]
[1729803043180,5.6497,177.0,176.95,19.78956024]
[1729803043367,25.43926024,177.0,176.95,19.78956024]
[1729803044179,5.6497,177.0,176.95,19.78956024]
[1729803044359,25.43926024,177.0,176.95,19.78956024]
[1729803046067,25.43926024,177.0,176.94,19.78956024]
[1729803046068,19.78956024,176.99,176.94,19.78956024]
[1729803053577,19.78956024,176.98,176.93,19.78956024]
[1729803055291,19.78956024,176.97,176.92,19.78956024]
[1729803056970,5.6503,176.98,176.92,19.78956024]
[1729803057169,25.43986024,176.98,176.93,19.78956024]
[1729803059685,16.96278351,177.0,176.94,19.78956024]
[1729803059975,19.78956024,176.99,176.9,23.902374]
[1729803060171,19.78956024,176.98,176.93,19.78956024]
[1729803063199,25.43966024,176.99,176.94,19.78956024]
[1729803064195,16.28768319,177.04,176.98,19.78956024]
[1729803064398,16.28768319,177.04,177.0,19.78956024]
[1729803065281,16.28768319,177.04,177.01,19.78956024]
[1729803066497,0.82878319,177.04,177.02,19.78956024]
[1729803067983,25.43736024,177.06,177.02,19.78956024]
[1729803068182,16.0243,177.08,176.94,79.15824096]
[1729803068183,16.0243,177.08,177.03,9.89478012]
[1729803068485,16.0243,177.08,177.06,19.78956024]
[1729803068692,6.1835,177.1,177.06,19.78956024]
[1729803068995,19.78956024,177.11,177.06,19.78956024]
[1729803069379,21.3517,177.12,176.98,21.888]
[1729803069380,41.14126024,177.12,177.07,19.78956024]
[1729803070014,21.3517,177.12,177.07,19.78956024]
[1729803070190,41.14126024,177.12,177.07,19.78956024]
[1729803070603,20.0,177.11,177.07,19.78956024]
[1729803071292,39.78956024,177.11,177.06,19.78956024]
[1729803072291,41.14126024,177.12,177.07,19.78956024]
[1729803073602,41.96979212,177.12,177.07,19.78956024]
[1729803074188,19.78956024,177.11,177.06,19.78956024]
[1729803078994,22.18023188,177.12,177.06,19.78956024]
[1729803079311,19.78956024,177.11,177.06,19.78956024]
[1729803081404,20.61809212,177.12,177.07,19.78956024]
[1729803081594,19.78956024,177.09,176.99,44.153354]
[1729803081803,19.78956024,177.09,177.04,19.78956024]
[1729803082120,19.78956024,177.09,177.05,23.776884]
[1729803083390,19.78956024,177.09,177.04,19.78956024]
[1729803083794,19.78956024,177.09,176.99,20.37647]
[1729803083795,19.78956024,177.08,177.03,19.78956024]
[1729803084005,19.78956024,177.08,177.04,23.776884]
[1729803085505,19.78956024,177.09,177.04,43.56644424]
[1729803090297,19.78956024,177.1,177.04,43.56644424]
[1729803092800,19.78956024,177.1,177.05,9.89478012]
[1729803092995,5.6462,177.11,177.06,19.78956024]
[1729803093705,19.78956024,177.1,177.04,23.776884]
[1729803093894,5.6462,177.11,177.04,43.56644424]
[1729803093895,19.78956024,177.09,177.04,43.56644424]
[1729803094092,19.78956024,177.1,177.04,43.56644424]
[1729803095090,19.78956024,177.09,177.04,43.56644424]
[1729803095393,19.78956024,177.09,177.04,23.776884]
[1729803095597,19.78956024,177.09,177.04,43.56644424]
[1729803095897,25.43606024,177.1,177.04,43.56644424]
[1729803098397,19.78956024,177.09,176.99,20.25098]
[1729803098721,19.78956024,177.08,177.02,19.78956024]
[1729803099409,19.78956024,177.06,176.98,15.2591]
[1729803099605,19.78956024,177.06,177.0,19.78956024]
[1729803099914,19.78956024,177.05,177.0,19.78956024]
[1729803102100,20.63696818,177.05,177.0,19.78956024]
[1729803104313,19.78956024,177.04,176.99,23.776884]
[1729803104516,19.78956024,177.04,176.99,43.56644424]
[1729803105712,0.84740794,177.05,176.99,43.56644424]
[1729803105713,20.63696818,177.05,177.0,19.78956024]
[1729803105913,0.84740794,177.05,177.0,19.78956024]
[1729803106099,0.84740794,177.05,177.02,19.78956024]
[1729803106710,0.84740794,177.05,177.04,19.78956024]
[1729803107106,0.84740794,177.05,177.04,43.56644424]
[1729803108113,19.78956024,177.1,177.04,43.56644424]
[1729803108308,35.36416024,177.11,177.04,43.56644424]
[1729803108496,35.36416024,177.11,177.05,19.78956024]
[1729803108811,35.36416024,177.11,177.06,19.78956024]
[1729803109909,36.21127702,177.11,177.06,19.78956024]
[1729803112307,19.78956024,177.1,177.06,19.78956024]
[1729803112506,19.78956024,177.1,177.05,19.78956024]
[1729803114692,19.78956024,177.1,177.06,19.78956024]
[1729803119129,19.78956024,177.1,177.05,19.78956024]
[1729803119616,0.84711678,177.11,177.09,19.78956024]
[1729803120714,0.84711678,177.11,177.08,19.78956024]
[1729803123520,0.84711678,177.11,177.07,19.78956024]
[1729803124511,0.84711678,177.11,177.08,19.78956024]
[1729803128615,0.84711678,177.11,177.07,19.78956024]
[1729803129217,19.78956024,177.1,177.04,23.776884]
[1729803129410,19.78956024,177.09,177.04,43.56644424]
[1729803130728,19.78956024,177.08,177.04,43.56644424]
[1729803133927,19.78956024,177.08,177.05,2.25991218]
[1729803135426,19.78956024,177.08,177.04,43.56644424]
[1729803135627,19.78956024,177.08,177.0,6.53869]
[1729803135833,19.78956024,177.06,177.01,19.78956024]
[1729803136632,19.78956024,177.06,177.02,2.26018136]
[1729803138114,19.78956024,177.06,177.02,22.0497416]
[1729803138725,19.78956024,177.06,177.02,19.78956024]
[1729803139812,19.78956024,177.06,177.03,2.26019102]
[1729803143216,19.78956024,177.06,177.04,2.26035459]
[1729803145618,19.78956024,177.06,177.03,2.26019102]
[1729803145819,19.78956024,177.05,177.03,2.26019102]
[1729803148714,19.78956024,177.06,177.03,2.26019102]
[1729803149031,19.78956024,177.07,177.03,2.26019102]
[1729803149928,19.78956024,177.07,177.04,2.26035753]
[1729803150754,19.78956024,177.07,177.02,19.78956024]
[1729803151033,19.78956024,177.06,177.02,19.78956024]
[1729803152411,19.78956024,177.06,177.01,19.78956024]
[1729803152737,19.78956024,177.04,177.0,23.776884]
[1729803154235,19.78956024,177.02,176.98,23.776884]
[1729803154425,19.78956024,177.01,176.96,19.78956024]
[1729803155133,19.78956024,177.01,176.97,2.2606081]
[1729803156018,19.78956024,177.01,176.98,2.2606081]
[1729803156429,19.78956024,177.01,176.99,2.2606081]
[1729803157132,19.78956024,177.01,176.97,23.776884]
[1729803159037,19.78956024,177.01,176.97,43.56644424]
[1729803159734,19.78956024,177.02,176.97,43.56644424]
[1729803160436,11.8413,177.05,176.96,23.776884]
[1729803160437,19.78956024,177.01,176.96,23.776884]
[1729803160738,19.78956024,177.01,176.96,43.56644424]
[1729803163136,19.78956024,177.01,176.98,2.26061029]
[1729803164026,19.78956024,177.01,176.97,2.26061029]
[1729803164237,19.78956024,177.01,176.99,2.26061029]
[1729803164638,9.89478012,177.01,176.99,2.26061029]
[1729803164841,2.25701226,177.27,177.05,20.0]
[1729803165140,0.97831963,177.26,177.21,19.78956024]
[1729803165349,5.86613019,177.26,177.21,19.78956024]
[1729803165727,25.65569043,177.26,177.2,19.78956024]
[1729803166038,19.78956024,177.24,177.19,23.776884]
[1729803166416,19.78956024,177.25,177.19,43.56644424]
[1729803167242,19.78956024,177.25,177.19,23.776884]
[1729803167440,19.78956024,177.24,177.19,23.776884]
[1729803167624,19.78956024,177.23,177.16,0.12549]
[1729803167824,19.78956024,177.23,177.18,23.776884]
[1729803168743,19.78956024,177.24,177.18,43.56644424]
[1729803168927,19.78956024,177.25,177.19,19.78956024]
[1729803169943,19.78956024,177.24,177.18,43.56644424]
[1729803170143,0.3966524,177.28,177.18,43.56644424]
[1729803170351,19.78956024,177.27,177.21,19.78956024]
[1729803170643,20.18621264,177.28,177.23,9.89478012]
[1729803170822,20.18621264,177.28,177.23,19.78956024]
[1729803171328,20.18621264,177.28,177.22,19.78956024]
[1729803171684,19.78956024,177.27,177.22,19.78956024]
[1729803172430,19.78956024,177.27,177.21,19.78956024]
[1729803172628,19.78956024,177.26,177.21,19.78956024]
[1729803174543,19.78956024,177.26,177.0,9.89478]
[1729803174544,19.78956024,177.24,177.12,79.25824096]
[1729803174848,19.78956024,177.23,177.17,19.78956024]
[1729803175040,19.78956024,177.23,177.18,19.78956024]
[1729803175348,19.78956024,177.24,177.18,19.78956024]
[1729803175745,19.78956024,177.24,177.19,19.78956024]
[1729803176329,19.78956024,177.25,177.19,19.78956024]
[1729803177638,0.84650032,177.26,177.13,0.1]
[1729803177639,19.78956024,177.24,177.13,0.25098]
[1729803177841,19.78956024,177.24,177.18,19.78956024]
[1729803178541,19.78956024,177.24,177.19,19.78956024]
[1729803179436,19.78956024,177.25,177.19,19.78956024]
[1729803180134,19.78956024,177.25,177.2,19.78956024]
[1729803180852,6.48790032,177.26,177.19,19.78956024]
[1729803180853,19.78956024,177.24,177.19,19.78956024]
[1729803181638,19.78956024,177.23,177.18,19.78956024]
[1729803182031,19.78956024,177.24,177.18,19.78956024]
[1729803182229,19.78956024,177.22,177.12,79.15824096]
[1729803182438,19.78956024,177.21,177.16,19.78956024]
[1729803182755,19.78956024,177.22,177.16,19.78956024]
[1729803183049,19.78956024,177.22,177.17,19.78956024]
[1729803184838,39.78956024,177.23,177.18,19.78956024]
[1729803186153,39.78956024,177.23,177.17,19.78956024]
[1729803187153,19.78956024,177.22,177.17,19.78956024]
[1729803189850,39.78956024,177.23,177.17,19.78956024]
[1729803190059,0.84648568,177.22,177.17,19.78956024]
[1729803190451,39.78956024,177.23,177.17,19.78956024]
[1729803191960,45.43196024,177.23,177.17,19.78956024]
[1729803192137,25.6424,177.23,177.17,19.78956024]
[1729803192339,39.78956024,177.24,177.19,19.78956024]
[1729803193057,19.78956024,177.23,177.18,19.78956024]
[1729803194361,20.63598291,177.23,177.18,19.78956024]
[1729803195054,0.84642267,177.23,177.18,19.78956024]
[1729803195254,0.84642267,177.23,177.17,19.78956024]
[1729803198555,6.48892267,177.23,177.17,19.78956024]
[1729803198762,19.78956024,177.21,177.15,19.78956024]
[1729803198960,19.78956024,177.2,177.15,19.78956024]
[1729803199644,19.78956024,177.21,177.15,19.78956024]
[1729803199844,19.78956024,177.21,177.16,19.78956024]
[1729803200246,25.43256024,177.21,177.16,19.78956024]
[1729803202864,19.78956024,177.2,177.15,19.78956024]
[1729803203568,25.43256024,177.21,177.15,19.78956024]
[1729803204851,9.89478012,177.2,177.15,9.89478012]
[1729803205050,15.53778012,177.21,177.11,23.776884]
[1729803205051,19.78956024,177.18,177.11,23.776884]
[1729803205356,19.78956024,177.19,177.14,19.78956024]
[1729803206069,25.43316024,177.19,177.14,19.78956024]
[1729803209855,25.43316024,177.19,177.13,19.78956024]
[1729803213175,25.43316024,177.19,177.14,19.78956024]
[1729803214172,5.6436,177.19,177.14,19.78956024]
[1729803214875,20.0,177.21,177.16,19.78956024]
[1729803215177,27.2694,177.22,177.17,19.78956024]
[1729803216263,20.0,177.21,177.17,19.78956024]
[1729803216776,20.0,177.21,177.16,19.78956024]
[1729803217456,20.0,177.21,177.17,19.78956024]
[1729803217683,47.05896024,177.22,177.17,19.78956024]
[1729803217978,27.2694,177.22,177.17,19.78956024]
[1729803219570,19.78956024,177.18,177.13,19.78956024]
[1729803220381,19.78956024,177.18,177.12,19.78956024]
[1729803220874,19.78956024,177.17,177.12,19.78956024]
[1729803221076,19.78956024,177.17,177.14,2.2590263]
[1729803223777,19.78956024,177.18,177.14,2.2590263]
[1729803224282,19.78956024,177.18,177.15,2.25903528]
[1729803224656,19.78956024,177.18,177.14,2.2590263]
[1729803226466,20.63623073,177.18,177.14,2.2590263]
[1729803229882,20.63623073,177.18,177.12,19.78956024]
[1729803231078,20.63623073,177.18,177.13,2.25902205]
[1729803231581,20.63623073,177.18,177.12,19.78956024]